[Event "Charlotte Spring IM-C 2023"]
[Site "Charlotte"]
[Date "2023.03.19"]
[Round "7.3"]
[White "Amburgy, Ryan"]
[Black "Sriniaiyer, Sudarshan"]
[Result "0-1"]
[ECO "D37"]
[WhiteElo "2242"]
[BlackElo "2186"]
[Annotator "TA"]
[PlyCount "110"]
[EventDate "2023.03.14"]
[EventType "tourn"]
[EventCountry "USA"]
[SourceTitle "playchess.com"]
[Source "ChessBase"]
[SourceQuality "1"]
[TimeControl "5400+30"]

{[%evp 9,110,9,13,-17,-17,-52,-58,-62,-29,-30,-38,-38,-29,-41,-44,-35,-40,-40,-41,-41,-31,-31,-39,-55,-53,-66,-64,-60,-26,-54,-43,-191,-198,-283,-211,-204,-202,-202,-187,-264,-264,-325,-314,-479,-385,-432,-389,-412,-414,-416,-391,-382,-371,-617,-612,-621,-619,-618,-606,-610,-604,-604,-576,-587,-586,-558,-550,-517,-459,-545,-519,-577,-570,-1048,-1012,-1638,-1608,-1327,-1269,-12834,-12834,-12832,-12832,-12830,-12830,-12838,-12837,-12836,-2779,-12841,-12841,-12841,-12842,-12843,-12844,-12844,-12843,-12844,-12844,-12846,-12845,-29996,-5218]} 1. d4 {[%emt 0:00:12]} Nf6 {[%emt 1:31:00]} 2. c4 {[%emt 0:00:05]} e6 {[%emt 0:00:00]} 3. Nf3 {[%emt 0:00:04]} d5 {[%emt 0:00:00]} 4. Nc3 {[%emt 0:00:06]} Nbd7 {[%emt 0:00:00]} 5. Bf4 {[%emt 0:00:30]} dxc4 {[%emt 0:00:00]} 6. e4 {[%emt 0:00:46] D37: Queen's Gambit Declined: 5 Bf4.} Bb4 {[%emt 0:00:00]} 7. Bxc4 {[%emt 0:00:33]} Nxe4 {[%emt 0:00:00]} 8. O-O {[%emt 0:00:10] Black is slightly better.} Nxc3 {[%emt 0:00:00]} (8... Bxc3 $5 9. bxc3 Nb6 $15) 9. bxc3 {[%emt 0:00:08]} Bd6 {[%emt 0:00:00]} 10. Bg5 {[%emt 0:05:12]} Be7 {[%emt 0:00:00]} 11. Bxe7 {[%emt 0:00:28]} Qxe7 {[%emt 0:00:00]} 12. Re1 {[%emt 0:01:00]} O-O {[%emt 0:00:00]} 13. Qe2 {[%emt 0:01:07] [#]} Qf6 $146 {[%emt 0:00:00]} ({Predecessor:} 13... Nb6 14. Bd3 c6 15. Rad1 Bd7 16. Bc2 Rfd8 17. Ne5 Nd5 18. c4 Nf6 19. Rd3 Be8 {0-1 Strating,S-Van der Weij,A (2305) Dieren op 1991 (6)}) 14. Bd3 {[%emt 0:06:36]} g6 {[%emt 0:00:00]} 15. Be4 {[%emt 0:06:57]} Rb8 {[%emt 0:00:00]} 16. Qc4 {[%emt 0:05:17]} Qd8 {[%emt 0:00:00]} 17. Rad1 {[%emt 0:07:27]} b5 {[%emt 0:00:00]} 18. Qb4 {[%emt 0:01:52]} Rb6 {[%emt 0:00:00]} 19. d5 {[%emt 0:12:47]} e5 {[%emt 0:00:00]} 20. d6 {[%emt 0:01:27] This costs White the game.} (20. Bd3 $15) 20... cxd6 $19 {[%emt 0:00:00]} 21. Rd5 {[%emt 0:04:58]} (21. Rxd6 $2 {loses.} a5 22. Rxd7 (22. Qa3 $2 b4 $19) 22... axb4 $19) (21. c4 $142) 21... Qc7 {[%emt 0:00:00][%cal Oa7a5]} ({Inferior is} 21... f5 22. Bc2 $19) 22. Rxb5 {[%emt 0:01:01]} Rxb5 {[%emt 0:00:00]} 23. Qxb5 {[%emt 0:00:01]} Qxc3 {[%emt 0:00:00]} 24. h4 {[%emt 0:00:43]} (24. Qc6 {was worth a try.} Nc5 25. Qxd6) 24... Nf6 {[%emt 0:00:00]} 25. Qa4 {[%emt 0:01:22]} Bg4 {[%emt 0:00:00]} 26. Rd1 {[%emt 0:00:52]} (26. Qc2 $142 Rc8 27. Qxc3 Rxc3 28. Bb7) 26... Qc5 {[%emt 0:00:00]} 27. Rd2 {[%emt 0:02:52]} Nxe4 {[%emt 0:00:00]} 28. Qxe4 {[%emt 0:00:02]} Qc1+ {[%emt 0:01:23]} 29. Qe1 {[%emt 0:00:01]} Rc8 {[%emt 0:00:26] [#] Threatens to win with ...Bxf3.} 30. Rd1 {[%emt 0:00:01]} Qf4 {[%emt 0:01:38]} 31. Qe3 {[%emt 0:01:03]} (31. Qd2) 31... Qxe3 {[%emt 0:01:39]} 32. fxe3 {[%emt 0:00:02][%mdl 4096] Endgame KRB-KRN} e4 {[%emt 0:00:48]} 33. Rd4 {[%emt 0:41:18]} Rc1+ {[%emt 0:00:32]} 34. Kf2 {[%emt 0:00:00]} exf3 {[%emt 0:00:15]} 35. Rxg4 {[%emt 0:00:00]} fxg2 {[%emt 0:00:07]} 36. Kxg2 {[%emt 0:00:00] KR-KR} Rc2+ {[%emt 0:00:07]} 37. Kf3 {[%emt 0:00:00]} Rxa2 {[%emt 0:00:06]} 38. Rd4 {[%emt 0:00:00]} Ra6 {[%emt 0:00:14]} 39. h5 {[%emt 0:00:00]} Kg7 {[%emt 0:00:21]} 40. Kg4 {[%emt 0:00:00]} Kh6 {[%emt 0:01:49]} 41. Rd5 {[%emt 0:00:00]} f5+ {[%emt 0:00:55]} 42. Kh4 {[%emt 0:00:00]} Ra4+ {[%emt 0:00:18]} 43. Kg3 {[%emt 0:00:00]} Kxh5 {[%emt 0:00:29]} 44. Rxd6 {[%emt 0:00:00]} Kg5 {[%emt 0:00:31]} 45. Kf3 {[%emt 0:00:00]} a5 {[%emt 0:00:54]} 46. Rd5 {[%emt 0:00:00]} h5 {[%emt 0:00:37]} 47. Rc5 {[%emt 0:00:00]} h4 {[%emt 0:01:54]} 48. Rd5 {[%emt 0:00:00]} Ra3 {[%emt 0:01:12]} 49. Kf2 {[%emt 0:00:00]} Ra2+ {[%emt 0:00:26]} 50. Kf3 {[%emt 0:00:00]} h3 {[%emt 0:00:41]} 51. Kg3 {[%emt 0:00:00]} h2 {[%emt 0:00:04]} 52. Rd1 {[%emt 0:00:00]} Rb2 {[%emt 0:00:08]} 53. e4 {[%emt 0:00:00]} fxe4 {[%emt 0:00:35]} 54. Kh3 {[%emt 0:00:00]} a4 {[%emt 0:00:47]} 55. Rg1+ {[%emt 0:00:00]} hxg1=N+ {[%emt 0:00:11] Weighted Error Value: White=0.45/Black=0.12 (very precise)} (55... hxg1=B $142 56. Kg3 a3 57. Kh3 Kf4 58. Kh4 Rh2#) 0-1

[Event "Charlotte Spring IM-C 2023"]
[Site "Charlotte"]
[Date "2023.03.19"]
[Round "7.4"]
[White "Yu, Jiangwei"]
[Black "Jayaraman, Roshan"]
[Result "1-0"]
[ECO "D35"]
[WhiteElo "2167"]
[BlackElo "1907"]
[Annotator "TA"]
[PlyCount "81"]
[EventDate "2023.03.14"]
[EventType "tourn"]
[EventCountry "USA"]
[SourceTitle "playchess.com"]
[Source "ChessBase"]
[SourceQuality "1"]
[TimeControl "5400+30"]

{[%evp 12,81,34,31,46,33,38,45,56,-1,-4,-6,0,0,0,-14,-18,-47,-41,-56,-8,-27,-35,-33,0,0,0,0,8,0,0,0,0,0,0,-8,6,10,27,16,35,20,35,30,25,0,0,-16,-1,-27,-6,-6,0,-41,-16,-74,-21,-74,0,-53,-49,-61,-10,-17,-12,-13,0,0,73,8,233,77]} 1. d4 {[%emt 0:00:57]} Nf6 {[%emt 0:05:27]} 2. c4 {[%emt 0:00:05]} e6 {[%emt 0:00:21]} 3. Nc3 {[%emt 0:00:05]} d5 {[%emt 0:00:24]} 4. cxd5 {[%emt 0:00:16]} exd5 {[%emt 0:00:25]} 5. Bg5 {[%emt 0:00:06][%cal Bc1g5,Bg5h4,Bh4g3][%mdl 32]} Bb4 {[%emt 0:00:41]} 6. e3 {[%emt 0:05:31]} h6 {[%emt 0:01:12]} 7. Bh4 {[%emt 0:01:56]} g5 {[%emt 0:01:32] D35: Queen's Gambit Declined: Exchange Variation.} 8. Bg3 {[%emt 0:00:04]} Ne4 {[%emt 0:00:12]} 9. Nge2 {[%emt 0:03:13]} h5 {[%emt 0:00:49] White is slightly better.} 10. f3 {[%emt 0:01:28]} (10. h4 $14) 10... Nxg3 $11 {[%emt 0:01:25]} 11. hxg3 {[%emt 0:01:02]} Qe7 {[%emt 0:06:34]} 12. Qd3 {[%emt 0:08:29] [#]} Be6 $146 {[%emt 0:12:26]} ({Predecessor:} 12... c6 13. O-O-O Be6 14. g4 h4 15. Ng3 Nd7 16. Nf5 Bxf5 17. gxf5 O-O-O 18. a3 Bxc3 19. Qxc3 {0-1 Donado Mazarron Gomez,M (2078)-Alvarez Serrano,C (2244) Almansa op-A 14th 2019 (1)}) 13. g4 {[%emt 0:31:14]} h4 {[%emt 0:00:45]} 14. g3 {[%emt 0:06:45]} Nd7 {[%emt 0:02:39]} 15. gxh4 {[%emt 0:01:24]} gxh4 {[%emt 0:00:14]} (15... Rxh4 $15 {is more appropriate.} 16. Rxh4 gxh4) 16. Nf4 {[%emt 0:01:02]} (16. a3 $5 {[%cal Ra3b4]} Bd6 17. Nb5 $14) 16... O-O-O {[%emt 0:08:40]} 17. a3 {[%emt 0:04:43]} Bxc3+ {[%emt 0:00:22]} 18. Qxc3 {[%emt 0:00:10]} Kb8 {[%emt 0:00:34]} 19. O-O-O {[%emt 0:00:27]} Nf8 {[%emt 0:14:44]} 20. Bd3 {[%emt 0:08:35] Prevents f5} Bc8 {[%emt 0:00:45]} 21. Qd2 {[%emt 0:01:21]} Ne6 {[%emt 0:01:51]} 22. Nxe6 {[%emt 0:04:30]} Bxe6 {[%emt 0:00:56]} 23. Qh2 {[%emt 0:01:58]} Rdg8 {[%emt 0:06:48]} 24. Qf4 {[%emt 0:00:46]} Qg5 {[%emt 0:01:04]} 25. Rh2 {[%emt 0:04:04] Hoping for Qxg5.} f6 {[%emt 0:06:28]} 26. Rdh1 {[%emt 0:00:29]} Rh6 {[%emt 0:00:31]} 27. Rc2 {[%emt 0:01:13]} Rg7 {[%emt 0:01:33]} 28. Kb1 {[%emt 0:01:03]} Rh8 {[%emt 0:12:47]} 29. Rhc1 {[%emt 0:00:07]} Rc8 {[%emt 0:00:24]} (29... Re7 {simplifies} 30. Re2 Bg8 31. Qxg5 fxg5 32. f4 Be6) 30. Ka1 {[%emt 0:00:19]} a6 {[%emt 0:02:23]} 31. Rc3 {[%emt 0:01:38]} Re7 {[%emt 0:02:02]} (31... Qxf4 {simplifies} 32. exf4 Rh8 33. R3c2 h3) 32. Rh1 {[%emt 0:01:46]} (32. Qh2 $5 {[%cal Rd3a6]} Ka7 33. Be2 $11) 32... Rh8 {[%emt 0:00:15]} 33. Rc2 {[%emt 0:02:40]} (33. Bb1 $11) 33... Rg7 {[%emt 0:00:11]} (33... Bc8 $17) 34. Re1 {[%emt 0:01:43]} (34. Rch2 $11 {keeps the balance.}) 34... Rc8 {[%emt 0:00:39]} (34... Bc8 $17) 35. Ree2 {[%emt 0:01:44]} (35. Qh2 $11) 35... Re8 $15 {[%emt 0:00:19]} 36. Qh2 {[%emt 0:01:49]} Bc8 {[%emt 0:01:12]} ({Don't do} 36... f5 37. gxf5 Bxf5 38. Rg2 $14) ({Black should try} 36... Bg8 $15) 37. e4 $11 {[%emt 0:00:37]} dxe4 {[%emt 0:00:25]} 38. Bxe4 {[%emt 0:00:34]} Ree7 {[%emt 0:01:00]} 39. d5 {[%emt 0:01:13] Black must now prevent d6.} Rd7 {[%emt 0:04:09] [#]} (39... f5 $11 {remains equal.} 40. d6 Rxe4 41. fxe4 (41. dxc7+ Ka8 $11) 41... fxg4 42. dxc7+ Ka8) 40. Re1 {[%emt 0:01:14] White is more active. Black is weak on the light squares} ({Better is} 40. Rc5 $1 $16) 40... Qe5 $2 {[%emt 0:02:17] [#]} (40... f5 $11 {and Black has nothing to worry.} 41. gxf5 (41. Bxf5 Rxd5 42. Be4 Rd6 $11) 41... Rd8) 41. Qxh4 $2 {[%emt 0:00:14] Weighted Error Value: White=0.20 (precise) /Black=0.26 (precise)} (41. Qxe5 $1 $18 fxe5 42. Rh1) 1-0

[Event "Charlotte Spring IM-C 2023"]
[Site "Charlotte"]
[Date "2023.03.18"]
[Round "7.5"]
[White "Petenyi, Tamas"]
[Black "Nguyen, James Le"]
[Result "0-1"]
[ECO "B11"]
[WhiteElo "2325"]
[BlackElo "2100"]
[Annotator "TA"]
[PlyCount "43"]
[EventDate "2023.03.14"]
[EventType "tourn"]
[EventCountry "USA"]
[SourceTitle "playchess.com"]
[Source "ChessBase"]
[SourceQuality "1"]
[TimeControl "5400+30"]

{[%evp 9,43,-33,-30,-35,-31,-31,-24,-37,-20,-74,-11,-43,-10,-43,-27,-15,-26,-86,-89,-83,-75,-75,-81,-94,-64,-95,-37,-43,-14,-39,-66,-65,-60,-39,-47,-45]} 1. e4 {[%emt 0:00:37]} c6 {[%emt 0:00:10]} 2. Nc3 {[%emt 0:04:01]} d5 {[%emt 0:00:25]} 3. Qe2 {[%emt 0:00:05]} d4 {[%emt 0:00:07]} 4. Nd1 {[%emt 0:00:04]} e5 {[%emt 0:00:07]} 5. g3 {[%emt 0:00:14]} c5 {[%emt 0:00:07]} 6. d3 {[%emt 0:00:09] B11: Caro-Kann: Two Knights Variation.} Nc6 {[%emt 0:00:09]} 7. Bg2 {[%emt 0:00:27] has lost popularity (7.f4).} Bd6 {[%emt 0:00:09]} 8. f4 {[%emt 0:00:57] Black has an edge.} Nge7 {[%emt 0:00:13]} 9. Nf3 {[%emt 0:00:48] [#]} (9. f5 $11 {remains equal.}) 9... Bd7 $146 {[%emt 0:00:36]} ({But not} 9... Bg4 10. Nf2 Bd7 11. f5 $11) (9... exf4 $1 $17 10. Bxf4 O-O) ({Predecessor:} 9... Qc7 10. f5 Bd7 11. O-O O-O-O 12. c4 f6 13. Bd2 g6 14. Nh4 Rdf8 15. a3 a5 {0-1 Pridorozhni,A (2597)-Svane,R (2613) Titled Tuesday intern op 18th Aug blitz 2020 (4)}) 10. O-O {[%emt 0:02:10]} Qc7 {[%emt 0:01:55][%cal Re5f4]} 11. fxe5 {[%emt 0:04:58]} Nxe5 {[%emt 0:00:19]} 12. Nxe5 {[%emt 0:03:05]} Bxe5 {[%emt 0:00:05]} 13. Nf2 {[%emt 0:00:16] [#]} (13. Qh5 $11 O-O 14. Bd2) 13... h5 $1 $17 {[%emt 0:02:21][%cal Bh7h5,Bh5h4,Bh4h3][%mdl 32]} 14. Bh3 {[%emt 0:03:24]} O-O-O {[%emt 0:06:10]} 15. Bxd7+ {[%emt 0:03:31]} Qxd7 {[%emt 0:01:45]} 16. Kg2 {[%emt 1:13:44]} h4 {Black is more active.} 17. Bf4 {[%emt 0:00:30]} Ng6 {[%emt 1:24:22]} (17... hxg3 $17 18. Bxe5 gxf2) 18. Qg4 $15 h3+ {[%emt 0:00:30]} 19. Kh1 {[%emt 0:01:00]} Bxf4 {[%emt 0:00:30] Black is slightly better.} 20. gxf4 {[%emt 0:00:30]} Qxg4 21. Nxg4 Rh4 {[%emt 0:01:00]} 22. f5 {[%emt 0:01:00] Weighted Error Value: White=0.17 (very precise) /Black=0.17 (very precise)} 0-1

[Event "Charlotte Spring IM-C 2023"]
[Site "Charlotte"]
[Date "2023.03.19"]
[Round "8.1"]
[White "Adamson, Robby"]
[Black "Nguyen, James Le"]
[Result "1/2-1/2"]
[ECO "B33"]
[WhiteElo "2265"]
[BlackElo "2100"]
[Annotator "TA"]
[PlyCount "46"]
[EventDate "2023.03.14"]
[EventType "tourn"]
[EventCountry "USA"]
[SourceTitle "playchess.com"]
[Source "ChessBase"]
[SourceQuality "1"]
[TimeControl "5400+30"]

{[%evp 17,46,5,4,6,0,9,5,8,8,8,11,-20,-9,-18,-31,-15,-14,-10,-18,-6,0,0,0,0,0,-5,-4,-15,-20,-152,-154]} 1. e4 {[%emt 0:04:29]} c5 {[%emt 0:00:06]} 2. Nf3 {[%emt 0:01:45]} Nc6 {[%emt 0:00:09]} 3. d4 {[%emt 0:00:04]} cxd4 {[%emt 0:00:06]} 4. Nxd4 {[%emt 0:00:02]} Nf6 {[%emt 0:00:08]} 5. Nc3 {[%emt 0:00:06]} e5 {[%emt 0:00:07]} 6. Nde2 {[%emt 0:05:08]} Bc5 {[%emt 0:02:52]} 7. Ng3 {[%emt 0:00:47]} d6 {[%emt 0:04:14]} 8. Be2 {[%emt 0:09:04]} O-O {[%emt 0:06:47]} 9. O-O {[%emt 0:01:46]} a6 {[%emt 0:03:12]} 10. Bg5 {[%emt 0:03:53] Strongly threatening Nd5. B33: Sicilian: Pelikan and Sveshnikov Variations.} h6 {[%emt 0:00:38]} 11. Bxf6 {[%emt 0:00:14]} Qxf6 {[%emt 0:00:14]} 12. Nd5 {[%emt 0:00:12] Prevents Ne7. The position is equal.} Qg5 {[%emt 0:06:41]} 13. c3 {[%emt 0:12:29]} Ne7 {[%emt 0:09:13] [#]} 14. Nc7 $146 {[%emt 0:13:43] A dynamic duo of knights.} ({Predecessor:} 14. Bc4 Ng6 15. Qc1 Qg4 16. Qd1 Qg5 17. Qc1 Qh4 18. Qd2 Be6 19. Bb3 Rab8 20. Rae1 {½-½ Franks,K (2348)-Sherwood,A (2357) BCCC 19/21 ICCF email 2019}) 14... Rb8 {[%emt 0:06:20]} 15. b4 {[%emt 0:00:22][%mdl 64] Deflection} Bb6 {[%emt 0:15:54]} 16. Nd5 {[%emt 0:00:26]} Nxd5 {[%emt 0:00:17]} 17. Qxd5 {[%emt 0:00:00]} Rd8 {[%emt 0:01:10]} 18. Bc4 $36 {[%emt 0:08:28][%mdl 2048] White has some pressure.} Be6 {[%emt 0:01:34]} 19. Qd3 {[%emt 0:00:04]} Rbc8 {[%emt 0:00:48]} 20. Bb3 {[%emt 0:00:01]} h5 {[%emt 0:09:18][%cal Bh6h5,Bh5h4,Bh4h3][%mdl 32]} 21. Ne2 {[%emt 0:03:45]} h4 {[%emt 0:02:18]} 22. Kh1 {[%emt 0:01:19]} h3 {[%emt 0:03:01][%csl Gh3][%cal Rg5g2]} 23. g3 {[%emt 0:01:29] [#]} (23. gxh3 $11 Qh6 24. Bxe6 Qxe6 25. Rad1) 23... d5 $1 {[%emt 0:26:53][%mdl 512] Weighted Error Value: White=0.15 (very precise) /Black=0.00 (flawless)} 1/2-1/2

[Event "Charlotte Spring IM-C 2023"]
[Site "Charlotte"]
[Date "2023.03.19"]
[Round "8.3"]
[White "Sriniaiyer, Sudarshan"]
[Black "Yu, Jiangwei"]
[Result "1/2-1/2"]
[ECO "D13"]
[WhiteElo "2186"]
[BlackElo "2167"]
[Annotator "TA"]
[PlyCount "21"]
[EventDate "2023.03.14"]
[EventType "tourn"]
[EventCountry "USA"]
[SourceTitle "playchess.com"]
[Source "ChessBase"]
[SourceQuality "1"]
[TimeControl "5400+30"]

{[%evp 20,21,15,0]} 1. d4 {[%emt 0:00:04]} d5 {[%emt 0:03:58]} 2. c4 {[%emt 0:00:16]} c6 {[%emt 0:00:30]} 3. Nf3 {[%emt 0:00:34]} Nf6 {[%emt 0:00:04]} 4. cxd5 {[%emt 0:00:35]} cxd5 {[%emt 0:00:06]} 5. Nc3 {[%emt 0:00:10]} Nc6 {[%emt 0:00:10]} 6. Bf4 {[%emt 0:00:23]} a6 {[%emt 0:00:10]} 7. Rc1 {[%emt 0:00:33] [#]} Nh5 $146 {[%emt 0:01:29]} ({Predecessor:} 7... Bf5 8. e3 e6 9. Qb3 Ra7 10. Ne5 Be7 11. Nxc6 bxc6 12. Be2 O-O 13. O-O Nd7 14. Na4 Qa8 15. Bd3 Rb7 16. Qc2 Bxd3 17. Qxd3 Rb5 {½-½ Kovalenko,I (2674)-Kamsky,G (2661) Chess.com Rapid Wk8 Swiss 2022 (7)}) 8. Bd2 {[%emt 0:02:06]} Nf6 {[%emt 0:00:29]} 9. Bf4 {[%emt 0:03:55]} Nh5 {[%emt 0:00:14]} 10. Bd2 {[%emt 0:02:42]} Nf6 {[%emt 0:00:06]} 11. Bf4 {[%emt 0:10:54]} 1/2-1/2

[Event "Charlotte Spring IM-C 2023"]
[Site "Charlotte"]
[Date "2023.03.19"]
[Round "8.4"]
[White "Vanapalli, Vishnu"]
[Black "Amburgy, Ryan"]
[Result "1/2-1/2"]
[ECO "C47"]
[WhiteElo "2226"]
[BlackElo "2242"]
[Annotator "TA"]
[PlyCount "69"]
[EventDate "2023.03.14"]
[EventType "tourn"]
[EventCountry "USA"]
[SourceTitle "playchess.com"]
[Source "ChessBase"]
[SourceQuality "1"]
[TimeControl "5400+30"]

{[%evp 15,69,0,0,0,18,16,14,10,17,18,14,14,14,21,18,21,17,20,18,10,11,15,185,179,183,181,181,181,183,183,216,226,211,202,256,239,276,270,293,270,271,268,260,260,247,95,95,95,95,90,86,36,37,0,4,-16]} 1. e4 {[%emt 0:02:20]} e5 {[%emt 0:00:03]} 2. Nf3 {[%emt 0:00:12]} Nc6 {[%emt 0:00:07]} 3. Nc3 {[%emt 0:00:12]} Nf6 {[%emt 0:00:05]} 4. d4 {[%emt 0:00:07]} exd4 {[%emt 0:00:07]} 5. Nxd4 {[%emt 0:00:08]} Bb4 {[%emt 0:00:04]} 6. Nxc6 {[%emt 0:00:14]} bxc6 {[%emt 0:00:04]} 7. Bd3 {[%emt 0:00:10]} O-O {[%emt 0:00:06]} 8. O-O {[%emt 0:00:11]} d5 {[%emt 0:00:04]} 9. exd5 {[%emt 0:00:12] C47: Scotch Four Knights and Four Knights with 4 g3.} Bg4 {[%emt 0:00:05]} 10. f3 {[%emt 0:00:17]} Bh5 {[%emt 0:00:04]} 11. Bg5 {[%emt 0:00:11]} cxd5 {[%emt 0:00:05]} 12. Bxf6 {[%emt 0:00:45]} Qxf6 {[%emt 0:00:06]} 13. Nxd5 {[%emt 0:00:10]} Qxb2 {[%emt 0:00:05]} 14. Rb1 {[%emt 0:00:26]} Bc5+ {[%emt 0:00:06]} 15. Kh1 {[%emt 0:00:09]} Qe5 {[%emt 0:00:05]} 16. Re1 $36 {[%emt 0:00:42][%mdl 2048] White has some pressure.} Qd6 {[%emt 0:00:32] Black is weak on the light squares} 17. Ne7+ {[%emt 0:03:00]} Kh8 {[%emt 0:00:15]} 18. Qe2 {[%emt 0:00:36] [#]} Rae8 $146 {[%emt 0:10:46] [#]} (18... Rab8 $11 19. Nf5 (19. Qe4 Bg6 $11) 19... Qe6) ({Predecessor:} 18... Bg6 19. Nxg6+ hxg6 20. Qe4 Kg8 21. g3 Rab8 22. Kg2 Rxb1 23. Rxb1 Bb6 24. Re1 Rd8 {½-½ Paravyan,D (2551)-Sjugirov,S (2613) Wch Blitz Almaty 2022 (21)}) 19. Ng6+ $1 $18 {[%emt 0:04:12][%mdl 576] Discovered Attack} Bxg6 {[%emt 0:03:00]} 20. Qxe8 {[%emt 0:01:04][%cal Ob1b8] Strongly threatening Rb8!} Bxd3 {[%emt 0:00:07]} 21. cxd3 {[%emt 0:01:36]} Qxd3 {[%emt 0:00:59]} 22. Qb5 {[%emt 0:24:14]} Qxb5 {[%emt 0:03:30]} 23. Rxb5 {[%emt 0:00:11][%mdl 4096] Endgame KRR-KRB} Bb6 {[%emt 0:00:03]} 24. a4 {[%emt 0:07:39]} a5 {[%emt 0:04:59]} 25. Rd5 {[%emt 0:03:12]} g6 {[%emt 0:01:12]} 26. g3 {[%emt 0:00:42]} h5 {[%emt 0:01:09]} 27. Kg2 {[%emt 0:01:21]} Kg7 {[%emt 0:00:27]} 28. Rd7 {[%emt 0:01:02]} Rc8 {[%emt 0:02:26]} 29. Ree7 {[%emt 0:00:35]} Rf8 {[%emt 0:00:01]} 30. f4 $2 {[%emt 0:02:52]} (30. Re2 $18 {is more deadly.}) 30... Bc5 $16 {[%emt 0:13:02]} 31. Re5 {[%emt 0:09:02]} Bd6 {[%emt 0:00:34]} 32. Rxa5 {[%emt 0:00:14] White has more active pieces.} Rb8 {[%emt 0:00:13]} 33. f5 {[%emt 0:05:41]} ({White should play} 33. Ra7 $16) 33... Rb2+ $14 {[%emt 0:01:56]} 34. Kf3 {[%emt 0:02:11] Black must now prevent fxg6.} g5 {[%emt 0:02:37]} 35. Rxd6 {[%emt 0:16:56] An exciting game.   Weighted Error Value: White=0.10 (very precise) /Black=0.15 (very precise)} 1/2-1/2

[Event "Charlotte Spring IM-C 2023"]
[Site "Charlotte"]
[Date "2023.03.19"]
[Round "8.5"]
[White "Chiku-Ratte, Olivier-Kenta"]
[Black "Georgiev, Vladimir"]
[Result "1/2-1/2"]
[ECO "D35"]
[WhiteElo "2301"]
[BlackElo "2404"]
[Annotator "TA"]
[PlyCount "50"]
[EventDate "2023.03.14"]
[EventType "tourn"]
[EventCountry "USA"]
[SourceTitle "playchess.com"]
[Source "ChessBase"]
[SourceQuality "1"]
[TimeControl "5400+30"]

{[%evp 12,50,18,18,14,15,21,17,19,13,17,20,56,51,48,63,63,10,16,5,31,-16,-17,-20,24,-31,-33,-31,-29,-34,-36,-34,-29,-29,-13,-52,-46,-39,-33,-28,-10]} 1. d4 {[%emt 0:08:45]} Nf6 {[%emt 0:02:57]} 2. c4 {[%emt 0:00:06]} e6 {[%emt 0:00:05]} 3. Nc3 {[%emt 0:00:44]} d5 {[%emt 0:01:35]} 4. cxd5 {[%emt 0:00:16]} exd5 {[%emt 0:00:05]} 5. Bg5 {[%emt 0:00:05]} c6 {[%emt 0:00:16]} 6. e3 {[%emt 0:00:11]} Bd6 {[%emt 0:00:16]} 7. Bd3 {[%emt 0:00:57]} h6 {[%emt 0:00:16] D35: Queen's Gambit Declined: Exchange Variation.} 8. Bh4 {[%emt 0:00:36]} O-O {[%emt 0:00:13]} 9. Qc2 {[%emt 0:00:39]} a5 {[%emt 0:00:14] The position is equal.} 10. Nf3 {[%emt 0:04:59]} Re8 {[%emt 0:00:58]} 11. O-O {[%emt 0:02:37]} Na6 {[%emt 0:01:02]} 12. a3 {[%emt 0:01:20] Inhibits Nb4.} Bg4 {[%emt 0:01:29]} 13. Nd2 {[%emt 0:01:06]} Bd7 {[%emt 0:00:38][%cal Od6h2] [#]} 14. Bh7+ $146 {[%emt 0:06:16]} ({Predecessor:} 14. Bg3 Bxg3 15. hxg3 Ng4 16. Rfe1 Qf6 17. Nf1 h5 18. f3 Nh6 19. Qf2 Nc7 20. e4 {0-1 Knaak,R (2479)-Thuesen,M (2150) WchT Seniors 65 2022 (9.2)}) 14... Kh8 $11 {[%emt 0:00:43][%cal Od6h2]} 15. Bf5 {[%emt 0:00:16]} Be6 {[%emt 0:02:04]} 16. Bg3 {[%emt 0:03:14]} (16. Rae1 $14 {is superior.}) 16... Bxg3 {[%emt 0:03:20]} 17. hxg3 {[%emt 0:00:16]} Nc7 {[%emt 0:00:42][%cal Ba6c7,Bc7b5,Bb5d6][%mdl 32]} 18. Na4 {[%emt 0:00:32]} (18. Bd3 $11) 18... Bxf5 $15 {[%emt 0:01:20]} 19. Qxf5 {[%emt 0:00:27]} Nb5 {[%emt 0:06:21]} 20. Nc5 {[%emt 0:04:31]} Nd6 {[%emt 0:02:42]} 21. Qf4 {[%emt 0:01:28]} a4 {[%emt 0:04:05]} (21... g5 $5 22. Qf3 $8 Kg7 $11) 22. Rac1 {[%emt 0:02:19]} Qe7 {[%emt 0:04:44]} 23. Nd3 {[%emt 0:01:30]} g5 {[%emt 0:01:46]} 24. Qf3 {[%emt 0:00:58]} Nfe4 {[%emt 0:00:07]} 25. Rfd1 {[%emt 0:02:53]} Ra5 {[%emt 0:07:03] Weighted Error Value: White=0.14 (very precise) /Black=0.08 (flawless)} 1/2-1/2

[Event "Charlotte Spring IM-C 2023"]
[Site "Charlotte"]
[Date "2023.03.19"]
[Round "9.1"]
[White "Georgiev, Vladimir"]
[Black "Adamson, Robby"]
[Result "1/2-1/2"]
[WhiteElo "2404"]
[BlackElo "2265"]
[Annotator "TA"]
[PlyCount "36"]
[EventDate "2023.03.14"]
[EventType "tourn"]
[EventCountry "USA"]
[SourceTitle "playchess.com"]
[Source "ChessBase"]
[SourceQuality "1"]
[TimeControl "5400+30"]

{[%evp 13,15,9,17,4]} 1. d4 {[%emt 0:00:01]} Nf6 {[%emt 0:00:04]} 2. Nf3 {[%emt 0:00:04]} e6 {[%emt 0:00:15]} 3. c4 {[%emt 0:00:02]} d5 {[%emt 0:00:07]} 4. Nc3 {[%emt 0:00:04]} Bb4 {[%emt 0:00:04]} 5. cxd5 {[%emt 0:00:08]} exd5 {[%emt 0:00:04]} 6. Bg5 {[%emt 0:00:04]} h6 {[%emt 0:00:19]} 7. Bxf6 {[%emt 0:00:05]} Qxf6 {[%emt 0:00:02]} 8. Qa4+ {[%emt 0:00:05] [#] A rather calm draw.  is now debated instead of 8.Qb3. D38: Queen's Gambit Declined: Ragozin Defence (4 Nf3 Bb4).} {Predecessor:} Nc6 $146 9. e3 O-O 10. Rc1 Rd8 11. a3 Bf8 12. Be2 Ne7 13. O-O Ng6 14. b4 Be6 15. Qb3 c6 16. Na4 Bg4 17. Rfe1 Bd6 18. Nc5 Rab8 {½-½ Bauer,C (2615)-Moussard,J (2670) FRA-ch 95th Albi 2022 (2.2)} 1/2-1/2